[Event "Chinese League Division-A 2024"]
[Site "Fuling Chongqing"]
[Date "2024.07.04"]
[Round "8.21"]
[White "Huang, Renjie"]
[Black "Chen, Yuan"]
[Result "1/2-1/2"]
[ECO "C10"]
[WhiteElo "2480"]
[BlackElo "2294"]
[Annotator "TA"]
[PlyCount "272"]
[EventDate "2024.06.28"]
[EventType "team-tourn"]
[EventCountry "CHN"]
[SourceTitle "playchess.com"]
[Source "ChessBase"]
[SourceQuality "1"]
[TimeControl "40/5400+30:1800+30"]

{[%evp 124,272,37,37,37,37,37,0,0,0,37,0,29,29,37,29,37,37,37,37,37,37,37,0,0,0,37,0,0,0,37,37,37,37,37,37,37,37,37,37,37,37,37,37,37,0,0,0,0,0,0,0,0,0,0,0,0,0,0,0,0,0,0,0,0,0,0,0,0,0,0,0,0,0,0,0,0,0,0,0,0,0,0,0,0,0,0,0,0,0,0,0,0,0,0,0,0,0,0,0,0,0,0,0,0,0,0,0,0,0,0,0,0,0,0,0,0,0,0,0,0,0,0,0,0,0,0,0,0,0,0,0,0,0,0,0,0,0,0,0,0,0,0,0,0,0,0,0,0,0,0]} 1. e4 {[%emt 0:00:01]} e6 {[%emt 0:00:21]} 2. d4 {[%emt 0:00:05]} d5 {[%emt 0:00:03]} 3. Nd2 {[%emt 0:00:09]} dxe4 {[%emt 0:00:20]} 4. Nxe4 {[%emt 0:00:04]} Nd7 {[%emt 0:00:09]} 5. Nf3 {[%emt 0:01:35]} Ngf6 {[%emt 0:00:07]} 6. Bd3 {[%emt 0:00:30]} Nxe4 {[%emt 0:00:26]} 7. Bxe4 {[%emt 0:00:09]} Nf6 {[%emt 0:00:11]} 8. Bd3 {[%emt 0:00:40]} c5 {[%emt 0:00:07]} 9. O-O {[%emt 0:00:12]} cxd4 {[%emt 0:00:11]} 10. Nxd4 {[%emt 0:00:13]} Bc5 {[%emt 0:00:11]} 11. Nb3 {[%emt 0:02:36]} Be7 {[%emt 0:10:28]} 12. Bf4 {[%emt 0:03:07]} O-O {[%emt 0:01:24] C10: French with 3 Nc3: Unusual Black 3rd moves and 3...dxe4.} 13. Qe2 {[%emt 0:02:35]} Nd5 {[%emt 0:05:46]} 14. Be5 $146 {[%emt 0:01:04]} ({Predecessor:} 14. Bg3 Bf6 15. Rad1 Qe7 16. c4 Nb4 17. Bd6 {1-0 Norris,A (2285)-Paul,R (2155) Largs Premier op 1997 (3)}) 14... Bd6 {[%emt 0:03:25]} 15. c4 {[%emt 0:02:52]} Bxe5 {[%emt 0:09:03]} 16. Qxe5 {[%emt 0:00:17]} Qc7 {[%emt 0:02:05]} 17. Bxh7+ {[%emt 0:02:15]} Kxh7 {[%emt 0:00:03]} 18. Qh5+ {[%emt 0:00:05]} Kg8 {[%emt 0:00:02]} 19. cxd5 {[%emt 0:00:04]} exd5 {[%emt 0:00:03]} 20. Qxd5 {[%emt 0:01:46]} Be6 {[%emt 0:01:29]} 21. Qg5 {[%emt 0:00:42]} Bxb3 {[%emt 0:01:06]} 22. axb3 {[%emt 0:00:03]} Rfe8 {[%emt 0:01:20]} 23. Rfe1 {[%emt 0:10:04]} Qb6 {[%emt 0:02:05]} 24. Qg3 {[%emt 0:02:31]} Qd4 {[%emt 0:09:56]} 25. Qc3 {[%emt 0:00:28]} Rxe1+ {[%emt 0:04:58]} 26. Rxe1 {[%emt 0:00:02]} Rd8 {[%emt 0:00:26]} 27. g3 {[%emt 0:01:44]} Qxc3 {[%emt 0:32:16]} 28. bxc3 {[%emt 0:00:06]} Kf8 {[%emt 0:00:26]} 29. Re5 {[%emt 0:00:51]} b6 {[%emt 0:00:56]} 30. Re4 {[%emt 0:01:06]} Rd1+ {[%emt 0:02:40]} 31. Kg2 {[%emt 0:00:12]} Rb1 {[%emt 0:00:15]} 32. Rb4 {[%emt 0:00:36]} a5 {[%emt 0:02:52]} 33. Rb5 {[%emt 0:02:08]} Rc1 {[%emt 0:01:22]} 34. Rxb6 {[%emt 0:00:05]} Rxc3 {[%emt 0:00:03]} 35. Rb5 {[%emt 0:00:04]} g6 {[%emt 0:00:45]} 36. h4 {[%emt 0:03:53]} Kg7 {[%emt 0:00:09]} 37. Kh3 {[%emt 0:00:52]} Rd3 {[%emt 0:03:00]} 38. f4 {[%emt 0:01:20]} Rc3 {[%emt 0:00:06]} 39. Kg4 {[%emt 0:00:19]} Rd3 {[%emt 0:02:33]} 40. h5 {[%emt 0:00:00]} gxh5+ {[%emt 0:00:00]} 41. Kh4 {[%emt 0:05:31]} Rc3 {[%emt 0:04:24]} 42. Rxa5 {[%emt 0:05:26]} Rxb3 {[%emt 0:00:03]} 43. Rg5+ {[%emt 0:00:04]} Kf6 {[%emt 0:00:19]} 44. Kxh5 {[%emt 0:00:06]} Rb8 {[%emt 0:01:03]} 45. Kg4 {[%emt 0:00:13]} Rb3 {[%emt 0:00:26]} 46. Rg8 {[%emt 0:00:19]} Rb1 {[%emt 0:00:15]} 47. Ra8 {[%emt 0:00:23]} Rb6 {[%emt 0:01:09]} 48. Kh4 {[%emt 0:00:10]} Kg7 {[%emt 0:03:36]} 49. Ra5 {[%emt 0:00:29]} Rb4 {[%emt 0:01:17]} 50. Kh5 {[%emt 0:00:34]} Rb1 {[%emt 0:00:52]} 51. g4 {[%emt 0:01:03]} Rh1+ {[%emt 0:01:45]} 52. Kg5 {[%emt 0:00:04]} Rb1 {[%emt 0:00:17]} 53. Kf5 {[%emt 0:01:25]} Rb6 {[%emt 0:00:32]} 54. Rd5 {[%emt 0:00:10]} Re6 {[%emt 0:01:06]} 55. Kg5 {[%emt 0:00:11]} Ra6 {[%emt 0:02:59]} 56. Kh4 {[%emt 0:00:26]} Ra1 {[%emt 0:00:55]} 57. Rd6 {[%emt 0:00:42]} Ra5 {[%emt 0:02:38]} 58. g5 {[%emt 0:01:15]} Ra1 {[%emt 0:00:50]} 59. Kg4 {[%emt 0:00:42]} Ra4 {[%emt 0:02:39]} 60. Rd5 {[%emt 0:00:36]} Rb4 {[%emt 0:01:57]} 61. Ra5 {[%emt 0:01:25]} Rc4 {[%emt 0:00:29]} 62. Kf5 {[%emt 0:00:05]} Rc1 {[%emt 0:00:56]} 63. Ra7 {[%emt 0:00:42]} Rc5+ {[%emt 0:00:27]} 64. Ke4 {[%emt 0:00:39]} Rc4+ {[%emt 0:01:40]} 65. Ke5 {[%emt 0:00:04]} Rc5+ {[%emt 0:00:26]} 66. Kd4 {[%emt 0:00:22]} Rb5 {[%emt 0:00:15]} 67. Rd7 {[%emt 0:00:06]} Rb4+ {[%emt 0:01:28]} 68. Ke5 {[%emt 0:00:08]} Rb5+ {[%emt 0:00:04]} 69. Ke4 {[%emt 0:00:27]} Rb4+ {[%emt 0:00:31]} 70. Kf5 {[%emt 0:00:03]} Rb5+ {[%emt 0:00:23]} 71. Kg4 {[%emt 0:00:04]} Rb4 {[%emt 0:00:10]} 72. Re7 {[%emt 0:00:15]} Ra4 {[%emt 0:01:27]} 73. Kf5 {[%emt 0:00:41]} Ra5+ {[%emt 0:00:07]} 74. Re5 {[%emt 0:00:07]} Ra4 {[%emt 0:00:11]} 75. Re4 {[%emt 0:00:08]} Ra5+ {[%emt 0:00:36]} 76. Re5 {[%emt 0:00:08]} Ra4 {[%emt 0:00:05]} 77. Rd5 {[%emt 0:00:03]} Ra1 {[%emt 0:01:11]} 78. Rb5 {[%emt 0:00:38]} Re1 {[%emt 0:01:05]} 79. Rb4 {[%emt 0:00:08]} Re2 {[%emt 0:01:32]} 80. Kg4 {[%emt 0:01:22]} Rg2+ {[%emt 0:00:07]} 81. Kh4 {[%emt 0:00:40]} Rf2 {[%emt 0:00:23]} 82. Kg3 {[%emt 0:00:08]} Rf1 {[%emt 0:00:09]} 83. Kg2 {[%emt 0:00:13]} Ra1 {[%emt 0:00:17]} 84. f5 {[%emt 0:00:39]} Ra5 {[%emt 0:00:22]} 85. Rf4 {[%emt 0:00:02]} Ra1 {[%emt 0:00:43]} 86. Rf3 {[%emt 0:00:23]} Rb1 {[%emt 0:01:13]} 87. Kg3 {[%emt 0:00:14]} Rb4 {[%emt 0:01:30]} 88. Rd3 {[%emt 0:00:23]} Rb1 {[%emt 0:04:48]} 89. Kf4 {[%emt 0:07:41]} Rf1+ {[%emt 0:00:27]} 90. Rf3 {[%emt 0:00:06]} Ra1 {[%emt 0:00:42]} 91. Kg4 {[%emt 0:00:28]} Rg1+ {[%emt 0:01:39]} 92. Rg3 {[%emt 0:00:06]} Ra1 {[%emt 0:00:12]} 93. Rg2 {[%emt 0:00:29]} Rh1 {[%emt 0:00:34]} 94. Rg3 {[%emt 0:00:31]} Rf1 {[%emt 0:00:49]} 95. Rh3 {[%emt 0:00:55]} Rg1+ {[%emt 0:00:13]} 96. Kf4 {[%emt 0:00:07]} Rf1+ {[%emt 0:00:08]} 97. Rf3 {[%emt 0:00:03]} Ra1 {[%emt 0:00:38]} 98. Rf2 {[%emt 0:01:41]} Ra4+ {[%emt 0:02:12]} 99. Kg3 {[%emt 0:00:05]} Ra1 {[%emt 0:00:51]} 100. Rf3 {[%emt 0:00:34]} Rg1+ {[%emt 0:00:39]} 101. Kf4 {[%emt 0:00:03]} Ra1 {[%emt 0:00:09]} 102. Rd3 {[%emt 0:00:26]} Rf1+ {[%emt 0:00:46]} 103. Kg4 {[%emt 0:00:03]} Rg1+ {[%emt 0:00:10]} 104. Kh4 {[%emt 0:00:09]} Rh1+ {[%emt 0:00:34]} 105. Rh3 {[%emt 0:00:34]} Rf1 {[%emt 0:00:04]} 106. Kg4 {[%emt 0:00:06]} Rg1+ {[%emt 0:00:07]} 107. Kf4 {[%emt 0:00:20]} Rf1+ {[%emt 0:00:06]} 108. Rf3 {[%emt 0:00:03]} Ra1 {[%emt 0:00:09]} 109. Rf2 {[%emt 0:00:48]} Ra4+ {[%emt 0:00:16]} 110. Kg3 {[%emt 0:00:11]} Ra1 {[%emt 0:00:16]} 111. Kg2 {[%emt 0:00:18]} Rb1 {[%emt 0:00:33]} 112. Rf4 {[%emt 0:00:18]} Ra1 {[%emt 0:00:16]} 113. Rf1 {[%emt 0:00:57]} Ra3 {[%emt 0:00:17]} 114. Rf2 {[%emt 0:00:13]} Rb3 {[%emt 0:00:06]} 115. Rf3 {[%emt 0:00:34]} Rb1 {[%emt 0:00:09]} 116. Rf4 {[%emt 0:00:23]} Rb3 {[%emt 0:00:06]} 117. Kf2 {[%emt 0:00:35]} Ra3 {[%emt 0:00:13]} 118. Rf3 {[%emt 0:00:13]} Ra4 {[%emt 0:00:29]} 119. Kg3 {[%emt 0:00:05]} Ra1 {[%emt 0:00:04]} 120. Kg4 {[%emt 0:01:12]} Rg1+ {[%emt 0:00:23]} 121. Rg3 {[%emt 0:00:24]} Ra1 {[%emt 0:00:28]} 122. Rg2 {[%emt 0:04:33]} Rb1 {[%emt 0:00:13]} 123. Rf2 {[%emt 0:00:21]} Rg1+ {[%emt 0:00:42]} 124. Kf4 {[%emt 0:00:04]} Ra1 {[%emt 0:00:04]} 125. Kg3 {[%emt 0:00:56]} Rg1+ {[%emt 0:00:12]} 126. Rg2 {[%emt 0:00:10]} Ra1 {[%emt 0:00:07]} 127. Kg4 {[%emt 0:00:26]} Rb1 {[%emt 0:00:20]} 128. Rg3 {[%emt 0:01:36]} Ra1 {[%emt 0:00:17]} 129. Rh3 {[%emt 0:12:54]} Rg1+ {[%emt 0:00:11]} 130. Kh4 {[%emt 0:00:09]} Rf1 {[%emt 0:00:10]} 131. Kg4 {[%emt 0:00:06]} Rg1+ {[%emt 0:00:04]} 132. Kh5 {[%emt 0:00:03]} f6 {[%emt 0:00:11]} 133. gxf6+ {[%emt 0:00:35]} Kxf6 {[%emt 0:00:02]} 134. Rf3 {[%emt 0:00:04]} Rg5+ {[%emt 0:00:05]} 135. Kh4 {[%emt 0:00:02]} Rxf5 {[%emt 0:00:05]} 136. Rxf5+ {[%emt 0:00:02]} Kxf5 {[%emt 0:00:05]} 1/2-1/2

[Event "Chinese League Division-A 2024"]
[Site "Fuling Chongqing"]
[Date "2024.07.04"]
[Round "8.22"]
[White "Lu, Shanglei"]
[Black "Xiao, Tong"]
[Result "1/2-1/2"]
[ECO "B42"]
[WhiteElo "2606"]
[BlackElo "2518"]
[Annotator "TA"]
[PlyCount "138"]
[EventDate "2024.06.28"]
[EventType "team-tourn"]
[EventCountry "CHN"]
[SourceTitle "playchess.com"]
[Source "ChessBase"]
[SourceQuality "1"]
[TimeControl "40/5400+30:1800+30"]

{[%evp 51,138,62,66,69,79,52,52,56,58,54,72,62,70,45,55,45,45,45,98,98,105,105,105,105,105,105,105,105,105,105,105,105,105,105,105,105,105,80,80,0,0,0,0,0,0,0,0,0,0,0,0,0,0,0,0,0,0,0,0,0,0,0,0,0,0,0,0,0,0,0,0,0,0,0,0,0,0,0,0,0,0,0,0,0,0,0,0,0,0]} 1. e4 {[%emt 0:00:03]} c5 {[%emt 0:00:13]} 2. Nf3 {[%emt 0:00:45]} e6 {[%emt 0:00:41]} 3. d4 {[%emt 0:00:49]} cxd4 {[%emt 0:00:00]} 4. Nxd4 {[%emt 0:00:04]} a6 {[%emt 0:00:00]} 5. Bd3 {[%emt 0:00:17]} Bc5 {[%emt 0:00:11]} 6. Nb3 {[%emt 0:00:06]} Ba7 {[%emt 0:00:03]} 7. Qe2 {[%emt 0:00:06]} Ne7 {[%emt 0:01:15] is the new trend. B42: Sicilian: Kan Variation: 5 Bd3.} 8. Be3 {[%emt 0:00:19]} O-O {[%emt 0:00:39]} 9. O-O {[%emt 0:01:40]} Nbc6 {[%emt 0:02:25]} 10. f4 {[%emt 0:13:15]} Ng6 {[%emt 0:15:25]} 11. Nc3 {[%emt 0:00:00]} b5 {[%emt 0:07:30]} 12. e5 $146 {[%emt 0:00:00]} ({Predecessor:} 12. Kh1 Re8 13. e5 d5 14. exd6 f5 15. Rad1 e5 16. Bxa7 Rxa7 17. fxe5 Rxe5 18. Qf2 {1-0 Lane,G (2430)-Wohlfahrt,H (2240) Liechtenstein op 11th 1993 (5)}) 12... d5 {[%emt 0:05:32]} 13. Bxa7 {[%emt 0:20:48]} Rxa7 {[%emt 0:00:07]} 14. Qf2 {[%emt 0:00:02]} f6 {[%emt 0:09:37]} 15. Nd4 {[%emt 0:00:40]} Rc7 {[%emt 0:02:55]} 16. Nxc6 {[%emt 0:06:16]} Rxc6 {[%emt 0:00:04]} 17. Qd4 {[%emt 0:00:03]} Rc7 {[%emt 0:15:21]} 18. Ne2 {[%emt 0:09:17]} Rcf7 {[%emt 0:06:32]} 19. Qe3 {[%emt 0:08:23]} Qc7 {[%emt 0:03:04]} 20. c3 {[%emt 0:06:50]} Bd7 {[%emt 0:04:00]} 21. Rae1 {[%emt 0:04:51]} Ne7 {[%emt 0:12:53]} 22. Nd4 {[%emt 0:04:34]} Nc6 {[%emt 0:00:10]} 23. exf6 {[%emt 0:09:00]} Rxf6 {[%emt 0:00:10]} 24. g3 {[%emt 0:00:20]} Qd6 {[%emt 0:02:29]} 25. Nxc6 {[%emt 0:01:54]} Bxc6 {[%emt 0:00:17]} 26. Qd4 {[%emt 0:00:32]} Be8 {[%emt 0:00:55]} 27. Re5 {[%emt 0:05:22]} Bg6 {[%emt 0:00:14]} 28. Bxg6 {[%emt 0:00:07]} Rxg6 {[%emt 0:00:07]} 29. Rfe1 {[%emt 0:00:17]} Rgf6 {[%emt 0:05:10]} 30. a3 {[%emt 0:04:02]} (30. Qe3 {feels hotter.} Kf7 31. Kg2 Rc8 32. g4) 30... Qc6 {[%emt 0:03:33]} 31. h4 {[%emt 0:00:51]} (31. Qe3 {is more complex.} Kf7 32. h4 h6 33. Kf2) 31... h6 {[%emt 0:01:01]} 32. h5 {[%emt 0:00:45]} Qd6 {[%emt 0:01:13]} 33. Kg2 {[%emt 0:00:07]} (33. Qe3 {keeps more tension.} Kf7 34. Kg2 Qc6 35. Qd4) 33... Rc8 {[%emt 0:01:04]} 34. Qe3 {[%emt 0:00:46]} a5 {[%emt 0:02:01]} (34... Rc6 $14) 35. Rxe6 $16 {[%emt 0:04:06]} Rxe6 {[%emt 0:00:07]} 36. Qxe6+ {[%emt 0:00:02]} Qxe6 {[%emt 0:00:04]} 37. Rxe6 {[%emt 0:00:01]} b4 {[%emt 0:00:50]} 38. cxb4 {[%emt 0:01:17]} axb4 {[%emt 0:00:20]} 39. Re2 {[%emt 0:00:03]} bxa3 {[%emt 0:01:10]} 40. bxa3 {[%emt 0:00:00]} d4 {[%emt 0:00:00]} 41. Kf2 {[%emt 0:02:03]} d3 {[%emt 0:04:51]} 42. Re4 {[%emt 0:01:03]} Rc3 {[%emt 0:07:32]} 43. a4 {[%emt 0:02:39]} d2 {[%emt 0:00:21]} 44. Ke2 {[%emt 0:01:06]} (44. Rd4 {simplifies} Ra3 45. Rxd2 Rxa4 46. Rd7) 44... Rxg3 {[%emt 0:00:13]} 45. a5 {[%emt 0:03:51]} ({Better is} 45. Kxd2 $16 {Hoping for Re3.} Ra3 46. Kc2) 45... Ra3 $11 {[%emt 0:01:52]} 46. Re8+ {[%emt 0:00:09]} (46. Kxd2 Rxa5 47. Re5 Ra1 $15) 46... Kh7 {[%emt 0:00:55]} 47. Ra8 {[%emt 0:00:07]} (47. Kxd2 Rxa5 48. Re5 Ra8 $11) 47... Ra4 {[%emt 0:00:52]} 48. Kxd2 {[%emt 0:09:40]} Rxf4 {[%emt 0:00:07]} 49. Kc3 {[%emt 0:00:03]} Rh4 {[%emt 0:01:00]} 50. Rc8 {[%emt 0:00:31]} Rxh5 {[%emt 0:01:00]} 51. Kb4 {[%emt 0:00:02]} (51. a6 $5 Ra5 $8 52. Rc6 $11) 51... Rh1 {[%emt 0:01:03]} 52. Rc3 {[%emt 0:01:03]} Rb1+ {[%emt 0:03:55]} 53. Rb3 {[%emt 0:05:35]} Ra1 {[%emt 0:00:18]} 54. Ra3 {[%emt 0:03:57]} Rb1+ {[%emt 0:00:05]} (54... Rxa3 55. Kxa3 Kg6 56. a6 Kf5 57. a7 Kf4 58. a8=Q (58. a8=R h5 $11) 58... g5 59. Qf8+ Ke4 60. Qxh6) 55. Ka4 {[%emt 0:00:58]} h5 {[%emt 0:01:13]} 56. a6 {[%emt 0:00:06]} Rb8 {[%emt 0:00:07]} 57. a7 {[%emt 0:00:02]} Ra8 {[%emt 0:00:12]} 58. Kb5 {[%emt 0:00:03]} h4 {[%emt 0:02:34]} 59. Kb6 {[%emt 0:00:13]} g5 {[%emt 0:00:27]} 60. Kb7 {[%emt 0:00:01]} Rxa7+ {[%emt 0:00:06]} 61. Rxa7 {[%emt 0:00:12]} Kg6 {[%emt 0:00:17]} 62. Kc6 {[%emt 0:00:05]} Kf5 {[%emt 0:00:24]} 63. Kd5 {[%emt 0:00:47]} h3 {[%emt 0:01:00]} 64. Rf7+ {[%emt 0:06:17]} Kg4 {[%emt 0:00:07]} 65. Ke4 {[%emt 0:00:06]} h2 {[%emt 0:00:25]} 66. Rh7 {[%emt 0:00:13]} Kg3 {[%emt 0:00:04]} 67. Kf5 {[%emt 0:00:25]} Kg2 {[%emt 0:00:06]} 68. Kxg5 {[%emt 0:00:23]} h1=Q {[%emt 0:00:07]} 69. Rxh1 {[%emt 0:00:05]} Kxh1 {[%emt 0:00:04]} 1/2-1/2

[Event "Chinese League Division-A 2024"]
[Site "Fuling Chongqing"]
[Date "2024.07.04"]
[Round "8.23"]
[White "Liu, Qingnan"]
[Black "Chen, Zhi"]
[Result "1/2-1/2"]
[ECO "D37"]
[WhiteElo "2540"]
[BlackElo "2164"]
[Annotator "TA"]
[PlyCount "137"]
[EventDate "2024.06.28"]
[EventType "team-tourn"]
[EventCountry "CHN"]
[SourceTitle "playchess.com"]
[Source "ChessBase"]
[SourceQuality "1"]
[TimeControl "40/5400+30:1800+30"]

{[%evp 41,137,0,0,2,3,0,0,-25,-24,-36,-30,-41,-36,-51,-2,-14,16,16,19,24,13,0,24,0,0,0,50,52,52,45,100,100,93,94,87,95,99,106,97,85,87,83,197,200,184,129,144,131,170,152,151,61,250,267,293,0,0,0,0,0,0,0,0,0,0,0,0,0,0,0,0,0,12,-333,0,0,0,0,0,0,0,0,0,0,0,0,0,0,0,0,0,0,0,0,0,0,0,0]} 1. d4 {[%emt 0:00:08]} d5 {[%emt 0:00:35]} 2. c4 {[%emt 0:00:09]} e6 {[%emt 0:00:25]} 3. Nf3 {[%emt 0:00:15]} Nf6 {[%emt 0:00:43]} 4. Nc3 {[%emt 0:00:05]} Be7 {[%emt 0:08:44]} 5. Bf4 {[%emt 0:00:08]} O-O {[%emt 0:07:10]} 6. e3 {[%emt 0:00:06]} c5 {[%emt 0:01:30]} 7. dxc5 {[%emt 0:00:04]} Bxc5 {[%emt 0:00:10]} 8. a3 {[%emt 0:00:30]} a6 {[%emt 0:04:18]} 9. Qc2 {[%emt 0:02:25] D37: Queen's Gambit Declined: 5 Bf4.} dxc4 {[%emt 0:20:42]} 10. Rd1 {[%emt 0:01:38]} Nbd7 {[%emt 0:00:20]} 11. Bxc4 {[%emt 0:00:30]} b5 {[%emt 0:14:32]} 12. Bd3 {[%emt 0:02:52]} Bb7 {[%emt 0:05:10]} 13. Ne5 {[%emt 0:00:30]} h6 {[%emt 0:06:38]} 14. Bh7+ {[%emt 0:16:42]} Kh8 {[%emt 0:00:18]} 15. Be4 {[%emt 0:00:06]} Qc8 {[%emt 0:01:50]} 16. Nxd7 {[%emt 0:03:51]} Nxd7 {[%emt 0:00:07]} 17. Bxb7 $146 {[%emt 0:00:53]} ({Predecessor:} 17. O-O Nf6 18. Bxb7 Qxb7 19. Bd6 Bxd6 20. Rxd6 Rfd8 21. Qd3 Rxd6 22. Qxd6 Rc8 23. Rd1 {½-½ Pelletier,Y (2588)-Djingarova,E (2235) Basel op 2015 (4)}) 17... Qxb7 {[%emt 0:00:04]} 18. Qe4 {[%emt 0:00:04]} Ra7 {[%emt 0:03:16]} 19. Qxb7 {[%emt 0:01:21]} Rxb7 {[%emt 0:00:03]} 20. Ne4 {[%emt 0:00:07]} Be7 {[%emt 0:00:50]} 21. Bd6 {[%emt 0:00:16]} Bxd6 {[%emt 0:01:33]} 22. Rxd6 {[%emt 0:00:06]} Rc8 {[%emt 0:05:20]} 23. O-O {[%emt 0:00:14]} Ra7 {[%emt 0:04:29]} 24. f4 {[%emt 0:04:04]} Rc4 {[%emt 0:02:33]} 25. Nf2 {[%emt 0:02:29]} Nf6 {[%emt 0:00:35]} 26. Rfd1 {[%emt 0:02:20]} Nd5 {[%emt 0:01:49]} 27. Rd3 {[%emt 0:00:11]} Rc1+ {[%emt 0:00:32]} (27... Rc2 $15 28. Nd1 g6) 28. Nd1 $11 {[%emt 0:00:01]} Rc2 {[%emt 0:02:59]} 29. f5 {[%emt 0:00:32]} Nf6 {[%emt 0:06:19]} 30. fxe6 {[%emt 0:00:29]} fxe6 {[%emt 0:00:03]} 31. Rxe6 {[%emt 0:00:50]} Rac7 {[%emt 0:01:14]} 32. Red6 {[%emt 0:28:04]} (32. Rxa6 $5 Re2 33. Kf1 $11) 32... Ne4 {[%emt 0:00:55]} 33. Rxa6 {[%emt 0:06:35]} Re2 {[%emt 0:00:28]} (33... Rf7 $11 34. h4 Kh7) 34. Kf1 $1 $14 {[%emt 0:00:18]} Rcc2 {[%emt 0:00:07]} 35. Rd4 {[%emt 0:00:39]} Nf6 {[%emt 0:00:29]} (35... Nf2 $1 $14) 36. Rc6 $1 $16 {[%emt 0:01:51]} Rxg2 {[%emt 0:00:10]} 37. Rxc2 {[%emt 0:00:30]} Rxc2 {[%emt 0:00:04]} 38. h3 {[%emt 0:02:16]} Nh5 {[%emt 0:01:28]} 39. Rb4 {[%emt 0:02:38]} Ng3+ {[%emt 0:00:11]} 40. Kg1 {[%emt 0:00:00]} Ne2+ {[%emt 0:00:00]} 41. Kf2 $1 {[%emt 0:00:07]} Nf4+ {[%emt 0:18:14]} (41... Nc3+ $16 42. Ke1 Nxd1 43. Kxd1 Rh2) 42. Kf3 $1 $18 {[%emt 0:04:39]} Nxh3 {[%emt 0:03:41]} 43. Rxb5 {[%emt 0:00:18]} (43. Kg3 $1 $18 {[%cal Rg3h3]} Ng1 44. Rxb5) 43... Ng5+ $16 {[%emt 0:02:41]} 44. Kf4 $1 {[%emt 0:00:41]} Rd2 {[%emt 0:02:03]} 45. Nc3 $1 {[%emt 0:00:11]} Rf2+ {[%emt 0:00:12]} 46. Ke5 {[%emt 0:00:32]} (46. Kg3 $16 Rf3+ 47. Kg2 Rxe3 48. Nd5 Re2+ 49. Kg3) 46... Kh7 $2 {[%emt 0:02:34] [#]} ({Black should try} 46... h5 $1 $14) 47. a4 $1 $18 {[%emt 0:00:26]} h5 {[%emt 0:00:43]} 48. Ne4 $2 {[%emt 0:01:00]} ({Better is} 48. Kd6 $18 Nf7+ 49. Kc7) 48... Nxe4 $11 {[%emt 0:02:39]} 49. Kxe4 {[%emt 0:00:01]} Kg6 {[%emt 0:00:17]} 50. Rb6+ {[%emt 0:09:16]} Kg5 {[%emt 0:00:20]} 51. Rb7 {[%emt 0:07:01]} Kg6 {[%emt 0:00:31]} 52. Rb6+ {[%emt 0:04:52]} Kg5 {[%emt 0:00:05]} 53. Rb8 {[%emt 0:17:36]} h4 {[%emt 0:01:33]} 54. b4 {[%emt 0:00:12]} h3 {[%emt 0:01:22]} 55. Rh8 {[%emt 0:00:05]} Ra2 {[%emt 0:01:04]} 56. a5 {[%emt 0:10:18]} Kg4 {[%emt 0:00:57]} 57. Kd3 $2 {[%emt 0:02:25][%mdl 8192] [#]} (57. Kd5 $11 {and White stays safe.}) 57... g5 $2 {[%emt 0:00:19]} ({Black should play} 57... h2 $1 $19 58. Kc4 Kg3) 58. Kc4 $11 {[%emt 0:02:07]} Kg3 {[%emt 0:00:28]} 59. Kb3 $1 {[%emt 0:00:22]} Ra1 {[%emt 0:00:08]} 60. Kb2 {[%emt 0:00:04]} Ra4 {[%emt 0:00:10]} 61. Kb3 {[%emt 0:00:07]} Ra1 {[%emt 0:00:04]} 62. Kb2 {[%emt 0:00:05]} Ra4 {[%emt 0:01:20]} 63. Kb3 {[%emt 0:00:09]} Ra1 {[%emt 0:00:06]} 64. Kb2 {[%emt 0:00:14]} Ra4 {[%emt 0:01:21]} 65. Kb3 {[%emt 0:00:04]} Ra1 {[%emt 0:00:43]} 66. Kb2 {[%emt 0:01:45]} Ra4 {[%emt 0:00:10]} 67. Kb3 {[%emt 0:01:02]} Ra1 {[%emt 0:00:24]} 68. Kb2 {[%emt 0:01:28]} Ra4 {[%emt 0:00:40]} 69. Kb3 {[%emt 0:00:00]} 1/2-1/2